bitfinex/quotes_ETHUSD_20240907
["timestamp","ask_amount","ask_price","bid_price","bid_amount"]
[1725704838341,1.55634637,2294.5,2294.4,4.57370632]
[1725704840939,1.55634637,2294.5,2294.4,0.21527632]
[1725704841450,1.55634637,2294.5,2294.2,4.35868]
[1725704841747,1.55634637,2294.3,2294.2,4.35868]
[1725704842911,1.55634637,2294.3,2294.0,4.35903]
[1725704843146,3.88384637,2294.1,2293.8,4.35943]
[1725704843350,1.55634637,2293.9,2293.7,4.35975]
[1725704843647,1.55634637,2293.8,2293.7,4.35975]
[1725704844219,1.55634637,2293.8,2293.6,8.71966]
[1725704844429,1.55634637,2293.8,2293.5,4.36012]
[1725704844673,1.55634637,2293.6,2293.5,4.36012]
[1725704845020,1.55634637,2293.6,2293.1,0.5142]
[1725704845021,1.55634637,2293.6,2293.3,4.36046]
[1725704845184,1.55634637,2293.4,2293.2,4.3606]
[1725704846070,4.55634637,2293.4,2293.1,4.36087]
[1725704846281,1.55634637,2293.2,2293.1,4.36087]
[1725704846480,1.55634637,2293.2,2293.0,8.72198]
[1725704846638,1.55634637,2293.2,2293.0,8.72197]
[1725704846837,1.55634637,2293.2,2293.0,4.36098]
[1725704847088,1.55634637,2293.2,2292.8,4.36134]
[1725704847387,1.55634637,2292.9,2292.8,4.36134]
[1725704847939,3.74255574,2292.9,2292.8,4.36134]
[1725704852542,3.74255574,2292.9,2292.8,4.57828018]
[1725704852999,3.0,2293.4,2293.0,4.36109]
[1725704853146,3.74255574,2293.3,2293.0,4.36109]
[1725704853344,6.01035574,2293.1,2292.9,4.36127]
[1725704853574,6.01035574,2293.1,2292.8,4.36135]
[1725704853575,3.0,2293.0,2292.8,4.36135]
[1725704853793,3.74255574,2292.9,2292.8,4.36135]
[1725704854797,3.74255574,2292.9,2292.7,4.36163]
[1725704858762,3.74255574,2292.9,2292.6,8.72349]
[1725704858763,2.2678,2292.8,2292.6,8.72349]
[1725704858974,2.2678,2292.8,2292.0,11.72359325]
[1725704858975,3.74255574,2292.7,2292.5,4.36195]
[1725704859298,3.74255574,2292.7,2292.5,8.72391]
[1725704859595,3.0,2292.6,2292.5,4.36195]
[1725704860889,3.0,2292.6,2292.5,4.57889018]
[1725704865251,3.0,2292.6,2292.5,8.94094018]
[1725704867453,3.0,2292.6,2292.5,9.01764018]
[1725704867682,3.74255574,2293.0,2292.8,4.36136]
[1725704867969,3.0,2292.9,2292.8,4.36136]
[1725704868454,3.0,2292.9,2292.8,8.72283]
[1725704872124,4.55938498,2292.9,2292.8,8.72283]
[1725704872332,1.55938498,2292.9,2292.8,8.72283]
[1725704876370,3.0,2293.2,2292.9,4.36112]
[1725704876572,1.55938498,2293.0,2292.9,4.36112]
[1725704878684,3.88788498,2293.0,2292.9,4.36112]
[1725704878877,6.88788498,2293.0,2292.9,4.36112]
[1725704879076,6.88788498,2293.0,2292.8,4.36145]
[1725704879308,4.55938498,2292.9,2292.8,4.36145]
[1725704882518,4.55938498,2292.9,2292.8,4.55869899]
[1725704887692,4.55938498,2292.9,2292.8,0.19724899]
[1725704888035,2.3285,2292.8,2292.6,4.36185]
[1725704888196,1.55938498,2292.7,2292.5,4.36199]
[1725704888397,4.55938498,2292.7,2292.5,4.36199]
[1725704890759,4.55938498,2292.7,2292.4,4.36222]
[1725704890932,1.55938498,2292.5,2292.4,4.36222]
[1725704897272,4.00028498,2292.5,2292.3,8.72462]
[1725704897506,3.0,2292.4,2292.3,8.72462]
[1725704899217,3.0,2292.4,2292.2,4.36253]
[1725704899423,1.55938498,2292.3,2292.2,4.36253]
[1725704902525,4.36168,2292.7,2292.2,4.36253]
[1725704902526,11.12293948,2293.0,2292.9,8.72256]
[1725704902730,2.7522654,2293.3,2292.8,0.0767]
[1725704902731,2.2935545,2293.3,2292.8,0.0767]
[1725704902903,1.55938498,2293.3,2293.2,8.72142]
[1725704904306,1.55938498,2293.3,2293.2,8.79812]
[1725704904721,1.55938498,2293.3,2293.2,8.72142]
[1725704908927,1.55938498,2293.3,2293.2,4.36071]
[1725704912741,1.55938498,2293.3,2293.2,4.55777303]
[1725704914650,1.55938498,2293.3,2293.2,0.19706303]
[1725704915698,1.55938498,2293.3,2293.2,4.55777303]
[1725704915947,2.01610177,2293.3,2293.2,0.19706303]
[1725704916239,2.01610177,2293.3,2292.9,4.36115]
[1725704916449,1.55938498,2293.0,2292.9,4.36115]
[1725704918040,1.55938498,2293.0,2292.9,8.72243]
[1725704924165,1.55938498,2293.0,2292.9,4.36115]
[1725704924349,1.96410348,2293.0,2292.9,4.36115]
[1725704926427,2.4878,2292.9,2292.3,4.36229]
[1725704926676,1.55938498,2292.6,2292.5,8.72399]
[1725704927529,1.55938498,2292.6,2292.5,8.91602718]
[1725704928335,1.55938498,2292.6,2292.5,4.55397718]
[1725704931074,2.01610725,2292.6,2292.5,4.55397718]
[1725704931240,2.51771798,2292.6,2292.5,0.19203718]
[1725704931435,5.51771798,2292.6,2292.5,0.19203718]
[1725704935348,7.80261798,2292.6,2292.5,0.19203718]
[1725704936678,7.30100725,2292.6,2292.5,0.19203718]
[1725704938877,5.01610725,2292.6,2292.5,8.99283718]
[1725704939053,2.01610725,2292.6,2292.5,8.91613718]
[1725704955203,2.01610725,2292.6,2292.5,4.55408718]
[1725704956105,5.01610725,2292.6,2292.5,4.55408718]
[1725704960301,3.45672227,2292.6,2292.5,4.55408718]
[1725704960509,5.01610725,2292.6,2292.5,4.55408718]
[1725704960871,2.01610725,2292.6,2292.5,4.55408718]
[1725704965492,4.29970725,2292.6,2292.5,0.19203718]
[1725704965689,4.29970725,2292.6,2292.3,4.3624]
[1725704965690,7.29970725,2292.6,2292.3,4.3624]
[1725704965924,1.55938498,2292.4,2292.3,4.3624]
[1725704966537,1.55938498,2292.4,2292.2,4.36251]
[1725704968828,1.55938498,2292.4,2292.0,4.36286]
[1725704969031,7.36205,2292.5,2292.0,4.36286]
[1725704969032,1.55938498,2292.1,2292.0,4.36286]
[1725704969251,1.55938498,2292.1,2292.0,8.72586]
[1725704969537,2.01617428,2292.1,2292.0,8.72586]
[1725704972609,2.01617428,2292.1,2292.0,8.91207706]
[1725704977014,0.4567893,2292.1,2292.0,8.91207706]
[1725704977216,0.4567893,2292.1,2292.0,23.6567939]
[1725704977467,0.4567893,2292.1,2292.0,25.5543272]
[1725704977755,0.4567893,2292.1,2292.0,26.31378453]
[1725704978648,0.4567893,2292.1,2292.0,26.31342272]
[1725704979051,0.40147593,2292.1,2292.0,26.31342272]
[1725704979238,8.82938498,2292.7,2292.6,8.7237]
[1725704979447,8.82938498,2292.7,2292.6,8.91034031]
[1725704979632,11.82938498,2292.7,2292.6,8.91034031]
[1725704980229,8.82938498,2292.7,2292.6,10.24524834]
[1725704982129,8.82938498,2292.7,2292.6,8.91034031]
[1725704982648,1.55938498,2292.7,2292.6,8.91034031]
[1725704983424,3.83918498,2292.7,2292.6,0.18664031]
[1725704983620,6.83918498,2292.7,2292.6,0.18664031]
[1725704983861,6.83918498,2292.7,2292.4,4.36207]
[1725704983862,6.83918498,2292.7,2292.4,8.72414]
[1725704984165,1.55938498,2292.5,2292.4,8.72414]
[1725704987493,1.55938498,2292.5,2292.4,8.9101403]
[1725704987798,2.978618,2292.7,2292.6,4.36185]
[1725704987958,4.53800298,2292.7,2292.6,4.36185]
[1725704988157,1.55938498,2292.7,2292.6,4.36185]
[1725704988395,1.55938498,2292.7,2292.6,8.90974158]
[1725704989260,1.55938498,2292.7,2292.6,9.80071574]
[1725704990100,1.55938498,2292.7,2292.6,8.90974158]
[1725704990660,4.55938498,2292.7,2292.6,8.90974158]
[1725704991282,4.55938498,2292.7,2292.6,4.54789158]
[1725704994898,5.01615435,2292.7,2292.6,4.54789158]
[1725704998948,3.45676937,2292.7,2292.6,8.90974158]
[1725704999216,5.01615435,2292.7,2292.6,8.90974158]
[1725705000411,2.01615435,2292.7,2292.6,8.90974158]
[1725705000912,2.01615435,2292.7,2292.6,4.54789158]
[1725705001207,4.42175435,2292.7,2292.6,0.18604158]
[1725705001513,7.42175435,2292.7,2292.6,0.18604158]
[1725705002192,7.42175435,2292.7,2292.6,4.54789158]
[1725705004579,3.45676937,2292.7,2292.6,8.90974158]
[1725705004816,2.01615435,2292.7,2292.6,10.23693274]
[1725705004983,2.01615435,2292.7,2292.6,8.90974158]
[1725705011330,2.01615435,2292.7,2292.6,10.90974158]
[1725705012198,1.55938498,2292.7,2292.6,10.90974158]
[1725705017658,1.55938498,2292.7,2292.6,10.7237]
[1725705017831,1.55938498,2292.7,2292.6,10.9094629]
[1725705019144,3.82018498,2292.7,2292.6,10.9094629]
[1725705019320,4.55938498,2292.7,2292.6,10.9094629]
[1725705019521,1.55938498,2292.7,2292.6,10.9094629]
[1725705020146,3.82018498,2292.7,2292.6,10.9094629]
[1725705020349,6.82018498,2292.7,2292.6,10.9094629]
[1725705023016,4.55938498,2292.7,2292.6,10.9094629]
[1725705023220,1.55938498,2292.7,2292.6,10.9094629]
[1725705027659,2.0161877,2292.7,2292.6,10.9094629]
[1725705031127,2.0161877,2292.7,2292.6,6.5476129]
[1725705031352,5.0161877,2292.7,2292.6,2.1857629]
[1725705032359,4.4014877,2292.7,2292.6,2.1857629]
[1725705032688,7.4014877,2292.7,2292.6,2.1857629]
[1725705035289,11.7631477,2292.7,2292.6,2.1857629]
[1725705035590,7.4014877,2292.7,2292.6,2.1857629]
[1725705035882,9.69630623,2292.7,2292.6,2.1857629]
[1725705036378,7.4014877,2292.7,2292.6,2.1857629]
[1725705036551,11.7631477,2292.7,2292.6,2.1857629]
[1725705037256,7.4014877,2292.7,2292.6,2.1857629]
[1725705038794,9.69630623,2292.7,2292.6,2.1857629]
[1725705038976,9.69588265,2292.7,2292.6,2.1857629]
[1725705040159,7.4014877,2292.7,2292.6,2.1857629]
[1725705040808,5.0161877,2292.7,2292.6,2.1857629]
[1725705042370,2.0161877,2292.7,2292.6,2.1857629]
[1725705042903,4.4014877,2292.7,2292.6,2.1857629]
[1725705043067,7.4014877,2292.7,2292.6,2.1857629]
[1725705043902,14.05695233,2292.7,2292.6,2.1857629]
[1725705045778,11.7631477,2292.7,2292.6,2.1857629]
[1725705046013,14.05695233,2292.7,2292.6,2.1857629]
[1725705046324,11.7631477,2292.7,2292.6,2.1857629]
[1725705047681,14.05695233,2292.7,2292.6,2.1857629]
[1725705047881,11.7631477,2292.7,2292.6,2.1857629]
[1725705048227,2.3853,2292.6,2292.0,4.3629]
[1725705048516,2.3853,2292.6,2291.9,4.36303]
[1725705048517,1.55938498,2292.1,2291.9,4.36303]
[1725705049016,1.55938498,2292.1,2291.9,8.72613]
[1725705049182,2.01623911,2292.1,2291.9,4.36303]
[1725705050078,2.01623911,2292.1,2291.9,4.58903]
[1725705050474,2.01623911,2292.1,2291.9,8.95213]
[1725705051284,2.01623911,2292.1,2291.9,4.58903]
[1725705052484,2.01623911,2292.1,2291.9,8.95213]
[1725705053519,2.01623911,2292.1,2292.0,4.363]
[1725705054599,2.01623911,2292.1,2291.9,4.58903]
[1725705055903,2.01623911,2292.1,2292.0,0.16187169]
[1725705058828,2.01623911,2292.1,2292.0,4.52487169]
[1725705060827,0.45685413,2292.1,2292.0,14.24663186]
[1725705064685,0.45685413,2292.1,2292.0,9.88363186]
[1725705064686,2.01623911,2292.1,2292.0,9.88363186]
[1725705069073,2.01623911,2292.1,2292.0,14.24663186]
[1725705069235,0.45685413,2292.1,2292.0,15.76650148]
[1725705069573,0.45685413,2292.1,2292.0,20.12950148]
[1725705069749,0.45685413,2292.1,2292.0,22.4093967]
[1725705070838,0.45685413,2292.1,2292.0,18.0463967]
[1725705071178,0.45685413,2292.1,2292.0,15.76650148]
[1725705072356,0.45685413,2292.1,2292.0,18.04622733]
[1725705072671,1.55938498,2292.5,2292.4,8.72448]
[1725705072835,1.55938498,2292.5,2292.4,8.80118]
[1725705073157,1.55938498,2292.5,2292.4,8.96246327]
[1725705073158,2.01616569,2292.5,2292.4,8.96246327]
[1725705074036,2.01616569,2292.5,2292.4,13.32470327]
[1725705074256,0.45678071,2292.5,2292.4,13.32470327]
[1725705075344,4.55938498,2292.7,2292.6,8.7237]
[1725705075763,4.55938498,2292.7,2292.6,8.88493167]
[1725705075967,1.55938498,2292.7,2292.6,8.88493167]
[1725705076175,4.55938498,2292.7,2292.6,8.88493167]
[1725705076391,1.55938498,2292.7,2292.6,8.88493167]
[1725705080192,2.01615383,2292.8,2292.7,8.72332]
[1725705080481,2.01615383,2292.8,2292.7,8.88437622]
[1725705082880,1.55938498,2292.8,2292.7,8.88437622]
[1725705088172,3.95518498,2292.8,2292.7,8.88437622]
[1725705088564,3.95518498,2292.8,2292.7,0.16105622]
[1725705088993,3.95518498,2292.8,2292.5,8.72389]
[1725705089267,1.55938498,2292.6,2292.5,4.36193]
[1725705089891,3.95518498,2292.6,2292.4,8.72438]
[1725705090165,3.95518498,2292.6,2292.4,4.36215]
[1725705091086,3.95518498,2292.6,2292.4,8.7243]
[1725705091402,3.95518498,2292.6,2292.4,4.36215]
[1725705091999,1.55938498,2292.6,2292.5,8.7241]
[1725705092568,1.55938498,2292.6,2292.5,8.88470216]
[1725705096604,2.0161585,2292.8,2292.7,4.36166]
[1725705096897,2.0161585,2292.8,2292.7,8.88423176]
[1725705098586,4.4198585,2292.8,2292.7,8.88423176]
[1725705101597,2.0161585,2292.8,2292.7,8.88423176]
[1725705102897,9.6737,2293.4,2293.3,4.36052]
[1725705103118,3.96308498,2293.4,2293.3,4.36052]
[1725705103430,1.55938498,2293.4,2293.3,4.52132853]
[1725705104804,1.55938498,2293.4,2293.3,0.16080853]
[1725705105223,1.55938498,2293.4,2293.2,8.72117]
[1725705105393,1.55938498,2293.4,2293.2,4.36056]
[1725705105593,1.55938498,2293.4,2293.3,4.52132853]
[1725705107230,1.55938498,2293.4,2293.3,8.95854853]
[1725705107434,1.55938498,2293.4,2293.3,8.88184853]
[1725705109297,1.55938498,2293.4,2293.3,9.77770338]
[1725705110800,7.27,2294.0,2293.9,4.35938]
[1725705111029,1.55938498,2294.0,2293.9,8.71858]
[1725705111203,2.3158,2294.5,2294.3,4.35862]
[1725705111405,1.55938498,2294.4,2294.3,4.35862]
[1725705111604,2.3158,2294.7,2294.5,4.35822]
[1725705111832,1.55938498,2294.6,2294.5,4.35822]
[1725705112541,2.3158,2294.7,2294.5,4.35822]
[1725705112847,1.55938498,2294.6,2294.5,4.35822]
[1725705114020,3.73733044,2294.6,2294.5,4.35822]
[1725705114401,3.73733044,2294.6,2294.3,4.35862]
[1725705114637,2.3158,2294.7,2294.0,4.35907]
[1725705114638,3.73733044,2294.4,2294.0,4.35907]
[1725705114835,3.73733044,2294.2,2294.1,4.35897]
[1725705115741,6.67383,2294.7,2294.1,4.35897]
[1725705115742,3.73733044,2294.4,2294.1,4.35897]
[1725705118404,3.73733044,2294.4,2294.0,4.35907]
[1725705118739,2.3158,2294.3,2294.0,8.71814]
[1725705118957,2.3158,2294.3,2294.0,8.94414]
[1725705120257,3.73733044,2294.4,2294.1,4.35891]
[1725705122526,3.73733044,2294.4,2294.2,0.15792084]
[1725705122956,3.73733044,2294.4,2294.2,4.51662084]
[1725705123119,3.73733044,2294.4,2294.2,8.87532084]
[1725705123316,3.73733044,2294.4,2294.3,4.35862]
[1725705123809,3.73733044,2294.4,2294.3,4.51654084]
[1725705124653,3.73733044,2294.4,2294.3,0.15792084]
[1725705125031,3.73733044,2294.4,2294.1,4.35895]
[1725705125618,3.73733044,2294.4,2294.2,0.15792084]
[1725705128758,3.73733044,2294.4,2294.0,4.58511]
[1725705129064,3.73733044,2294.4,2294.3,0.15257126]
[1725705129222,3.73733044,2294.4,2294.0,4.58511]
[1725705129566,3.73733044,2294.4,2294.1,0.15257126]
[1725705129923,3.73733044,2294.4,2294.1,4.51152126]
[1725705131445,3.73733044,2294.4,2294.1,0.15257126]
[1725705131959,6.62444,2294.3,2294.1,0.15257126]
[1725705132452,4.35881,2294.2,2294.1,0.15257126]
[1725705132862,8.09614044,2294.2,2294.1,0.15257126]
[1725705133221,8.09614044,2294.2,2294.0,0.226]
[1725705133447,8.09614044,2294.2,2294.1,0.15257126]
[1725705133918,5.9166287,2294.2,2294.1,0.15257126]
[1725705140903,2.2658,2294.3,2294.1,0.15257126]
[1725705141178,1.5578187,2294.2,2294.1,0.15257126]
[1725705142200,2.2658,2294.3,2294.1,0.15257126]
[1725705142354,0.4566627,2294.5,2294.1,4.51157126]
[1725705142355,1.5578187,2294.2,2294.1,4.51157126]
[1725705143965,1.5578187,2294.2,2294.1,0.15257126]
[1725705145054,1.5578187,2294.2,2294.1,4.51157126]
[1725705146455,1.5578187,2294.2,2294.1,0.15257126]
[1725705147002,16.9000487,2294.2,2294.1,0.15257126]
[1725705147200,1.5578187,2293.4,2293.1,4.3609]
[1725705147360,6.62584,2293.6,2293.1,4.3609]
[1725705147361,1.5578187,2293.2,2293.1,4.3609]
[1725705149676,1.5578187,2293.2,2293.1,8.7218]
[1725705150006,3.74101914,2293.4,2293.2,4.36056]
[1725705150164,3.74101914,2293.4,2293.3,4.36052]
[1725705150471,6.74101914,2293.4,2293.3,4.36052]
[1725705150680,3.0,2293.4,2293.3,4.36052]
[1725705151001,3.74101914,2293.6,2293.4,4.36028]
[1725705151002,3.0,2293.5,2293.4,4.36028]
[1725705153300,3.0,2293.5,2293.3,4.36052]
[1725705153801,3.0,2293.5,2293.3,4.36041]
[1725705155108,3.0,2293.5,2293.4,4.36033]
[1725705155463,3.0,2293.5,2293.4,4.48805382]
[1725705155667,3.0,2293.5,2293.4,0.12772382]
[1725705156280,3.0,2293.5,2293.3,4.36041]
[1725705159224,6.01311914,2293.4,2293.1,4.36078]
[1725705159385,3.0,2293.3,2293.1,4.36078]
[1725705159586,3.0,2293.3,2293.2,0.12772382]
[1725705159895,7.36052,2293.3,2293.2,0.12772382]
[1725705160222,7.36052,2293.3,2292.8,4.36143]
[1725705160426,3.74101914,2293.0,2292.9,4.36128]
[1725705160720,3.74101914,2293.0,2292.9,4.48900382]
[1725705162289,3.74101914,2293.0,2292.9,0.12772382]
[1725705162513,6.74101914,2293.0,2292.9,0.12772382]
[1725705167527,9.01311914,2293.0,2292.9,0.12772382]
[1725705167922,9.01311914,2293.0,2292.6,4.36173]
[1725705168217,3.0,2292.9,2292.6,4.36173]
[1725705168643,3.0,2292.9,2292.6,8.72349]
[1725705169021,3.0,2292.9,2292.7,4.36162]
[1725705170254,3.0,2292.9,2292.5,4.36191]
[1725705170255,3.74101914,2292.8,2292.5,4.36191]
[1725705170418,3.74101914,2292.8,2292.6,8.72359]
[1725705170774,3.0,2292.7,2292.6,4.36175]
[1725705173547,3.0,2292.7,2292.5,4.36201]
[1725705173925,4.55963653,2292.7,2292.5,4.36201]
[1725705174259,1.55963653,2292.7,2292.5,4.36196]
[1725705174421,1.55963653,2292.7,2292.5,8.7239]
[1725705177741,1.55963653,2292.7,2292.5,4.36194]
[1725705178362,1.55963653,2292.7,2292.5,8.7239]
[1725705178966,1.55963653,2292.7,2292.6,4.36185]
[1725705180259,3.0,2292.9,2292.4,0.0767]
[1725705180461,1.60963653,2293.0,2292.9,4.36128]
[1725705180626,1.60963653,2293.0,2292.8,4.36147]
[1725705180832,2.4824,2292.9,2292.7,4.3615]
[1725705181065,1.55963653,2292.8,2292.7,4.3615]
[1725705181278,4.55963653,2292.8,2292.7,4.3615]
[1725705182351,4.55963653,2292.8,2292.4,4.36211]
[1725705182561,1.55963653,2292.5,2292.4,4.36211]
[1725705182759,1.55963653,2292.5,2292.3,4.36231]
[1725705182966,4.55963653,2292.5,2292.3,4.36231]
[1725705183832,4.55963653,2292.5,2292.4,4.36224]
[1725705185976,4.55963653,2292.5,2292.2,4.36243]
[1725705186273,1.55963653,2292.3,2292.1,4.36271]
[1725705186835,1.55963653,2292.3,2292.0,4.36285]
[1725705187035,1.55963653,2292.3,2292.1,4.36279]
[1725705187486,1.55963653,2292.3,2292.2,4.36262]
[1725705187977,3.0,2292.5,2292.4,4.36224]
[1725705188145,1.55963653,2292.6,2292.4,4.36224]
[1725705188342,1.96384018,2292.6,2292.3,4.36243]
[1725705188547,1.55963653,2292.4,2292.1,8.72538]
[1725705188753,4.55963653,2292.4,2292.1,8.72538]
[1725705188955,4.55963653,2292.4,2292.2,4.36261]
[1725705192342,3.0,2292.4,2292.3,4.36243]
[1725705192553,1.55963653,2292.5,2292.3,4.36243]
[1725705192751,1.55963653,2292.5,2292.4,4.36224]
[1725705192958,1.50175095,2292.5,2292.4,4.36224]
[1725705195275,3.93895095,2292.5,2292.4,4.36224]
[1725705195478,6.93895095,2292.5,2292.4,4.36224]
[1725705197475,6.93895095,2292.5,2292.4,4.48133726]
[1725705200273,4.50175095,2292.5,2292.4,4.48133726]
[1725705203483,1.50175095,2292.5,2292.4,0.11909726]
[1725705205500,1.50175095,2292.5,2292.4,4.48133726]
[1725705205703,13.91948162,2292.9,2292.4,0.2063386]
[1725705205704,1.82831647,2292.9,2292.4,0.2063386]
[1725705205902,0.05,2293.0,2292.9,4.36128]
[1725705206076,1.60963653,2293.0,2292.9,8.72256]
[1725705206280,1.60963653,2293.0,2292.9,8.83415858]
[1725705206471,1.60963653,2293.0,2292.9,4.47287858]
[1725705210823,1.60963653,2293.0,2292.9,0.11159858]
[1725705210824,3.99033653,2293.0,2292.9,0.11159858]
[1725705210978,11.35142653,2293.0,2292.9,0.11159858]
[1725705211179,2.3807,2292.8,2292.4,4.36222]
[1725705211399,1.55963653,2292.5,2292.4,4.36222]
[1725705211603,3.0,2292.7,2292.6,8.7237]
[1725705211799,1.55963653,2292.8,2292.7,8.72319]
[1725705212216,1.55963653,2292.8,2292.7,8.83068746]
[1725705223593,1.60963653,2293.0,2292.9,4.36128]
[1725705223988,1.60963653,2293.0,2292.9,4.46831382]
[1725705226236,1.60963653,2293.0,2292.9,8.82959382]
[1725705226237,0.05,2293.0,2292.9,8.82959382]
[1725705226540,0.05,2293.0,2292.9,14.1505332]
[1725705227599,0.05,2293.0,2292.9,18.5118132]
[1725705228234,0.05,2293.0,2292.9,22.30971557]
[1725705228425,0.05,2293.0,2292.9,18.5118132]
[1725705235865,0.50669792,2293.0,2292.9,18.5118132]
[1725705236084,0.50669792,2293.0,2292.9,14.1505332]
[1725705238623,0.50669792,2293.0,2292.9,9.7125532]
[1725705238828,0.50669792,2293.0,2292.9,8.82959382]
[1725705241982,4.34793445,2293.0,2292.9,4.46831382]
[1725705242567,4.34793445,2293.0,2292.9,0.10703382]
[1725705243074,7.34793445,2293.0,2292.9,0.10703382]
[1725705245770,7.34793445,2293.0,2292.9,4.46831382]
[1725705248054,7.34793445,2293.0,2292.9,0.10703382]
[1725705250055,7.34793445,2293.0,2292.7,4.36164]
[1725705250280,3.0,2292.9,2292.7,4.36164]
[1725705250457,3.0,2292.9,2292.8,0.10656008]
[1725705250790,3.0,2292.9,2292.7,4.36164]
[1725705251154,3.0,2292.9,2292.8,0.10656008]
[1725705251356,3.0,2292.9,2292.7,4.36164]
[1725705251554,3.0,2292.9,2292.8,0.10656008]
[1725705251787,3.0,2292.9,2292.7,4.36164]
[1725705251955,3.0,2292.9,2292.8,0.10656008]
[1725705252155,3.0,2292.9,2292.7,4.36164]
[1725705252580,3.0,2292.9,2292.8,0.10656008]
[1725705253273,3.0,2292.9,2292.7,4.36164]
[1725705253474,3.0,2292.9,2292.8,0.10656008]
[1725705253686,3.0,2292.9,2292.7,4.36164]
[1725705253892,3.0,2292.9,2292.8,0.10656008]
[1725705254061,3.0,2292.9,2292.7,4.36164]
[1725705254402,3.0,2292.9,2292.8,0.10656008]
[1725705254561,3.0,2292.9,2292.8,4.46803008]
[1725705257596,0.50669792,2293.0,2292.9,8.79926]
[1725705257908,0.50669792,2293.0,2292.9,13.16054]
[1725705258060,0.50669792,2293.0,2292.9,13.26706918]
[1725705258556,0.50669792,2293.0,2292.9,18.17834918]
[1725705258757,0.50669792,2293.0,2292.9,21.92294286]
[1725705259191,0.50669792,2293.0,2292.9,24.20166666]
[1725705259559,0.41483533,2293.0,2292.9,25.11470045]
[1725705259760,0.41483533,2293.0,2292.9,26.00421661]
[1725705259972,0.41483533,2293.0,2292.9,25.55113521]
[1725705260302,0.33997325,2293.0,2292.9,30.36549661]
[1725705260503,1.55963653,2293.9,2293.8,4.35957]
[1725705261208,1.55963653,2293.9,2293.8,4.46609918]
[1725705261699,1.55963653,2293.9,2293.8,8.82566918]
[1725705262997,1.55963653,2293.9,2293.8,0.10652918]
[1725705262998,3.98703653,2293.9,2293.8,0.10652918]
[1725705263385,3.98703653,2293.9,2293.6,4.35994]
[1725705263582,1.55963653,2293.7,2293.6,4.35994]
[1725705266067,1.55963653,2293.7,2293.5,4.36011]
[1725705266292,1.55963653,2293.6,2293.5,4.36011]
[1725705268118,2.4274,2293.5,2293.2,4.36055]
[1725705268264,1.55963653,2293.3,2293.2,4.36055]
[1725705270089,1.55963653,2293.3,2293.1,4.36082]
[1725705271247,2.3271,2293.2,2293.0,4.36098]
[1725705271389,1.55963653,2293.1,2293.0,4.36098]
[1725705271585,4.55963653,2293.1,2293.0,4.36098]
[1725705272533,4.55963653,2293.1,2293.0,4.4663869]
[1725705275025,4.55963653,2293.1,2293.0,0.1054069]
[1725705275527,4.55963653,2293.1,2292.8,4.36145]
[1725705275693,5.3271,2293.1,2293.0,0.10419357]
[1725705275892,3.88673653,2293.1,2292.8,4.36145]
[1725705276098,1.55963653,2292.9,2292.8,4.36145]
[1725705278022,1.55880156,2292.9,2292.8,4.36145]
[1725705279017,1.55880156,2292.9,2292.8,8.72292]
[1725705280194,3.0,2293.0,2292.9,8.72256]
[1725705280738,2.01640823,2293.1,2293.0,4.36109]
[1725705281036,0.4567717,2293.1,2293.0,13.08327]
[1725705282032,0.4567717,2293.1,2293.0,8.72218]
[1725705282534,0.4567717,2293.1,2293.0,13.08327]
[1725705282718,0.4567717,2293.1,2293.0,14.9157266]
[1725705283108,0.4567717,2293.1,2293.0,14.9924266]
[1725705285741,1.55963653,2293.5,2293.4,4.36033]
[1725705287861,1.55963653,2293.5,2293.4,4.46532664]
[1725705290557,1.55963653,2293.5,2293.4,8.82565664]
[1725705290758,1.55963653,2293.7,2293.6,4.35992]
[1725705290969,1.55963653,2293.7,2293.6,8.71987]
[1725705291257,1.55963653,2293.7,2293.6,8.82485634]
[1725705292924,1.55963653,2293.9,2293.8,4.35941]
[1725705293129,1.55963653,2293.9,2293.8,4.46374766]
[1725705293963,1.55963653,2293.9,2293.8,8.82331766]
[1725705295932,2.01629027,2293.9,2293.8,8.82331766]
[1725705296171,2.01629027,2293.9,2293.8,0.10433766]
[1725705296336,4.9269993,2293.9,2293.8,0.10433766]
[1725705296545,4.9269993,2293.9,2293.6,4.35994]
[1725705296743,1.55963653,2293.7,2293.6,4.35994]
[1725705297531,2.4628,2293.6,2293.2,4.36061]
[1725705297733,2.4628,2293.6,2293.0,4.36099]
[1725705297734,1.55963653,2293.3,2293.0,4.36099]
[1725705297938,1.55963653,2293.1,2293.0,4.36109]
[1725705298571,4.55963653,2293.1,2293.0,4.36109]
[1725705298934,4.55963653,2293.1,2292.8,11.28447325]
[1725705298935,4.55963653,2293.1,2292.8,6.92312325]
[1725705299134,4.55963653,2293.1,2292.6,4.3617]
[1725705299135,1.55963653,2292.9,2292.7,4.36165]
[1725705299334,3.0,2293.1,2292.6,4.36168]
[1725705299335,1.55963653,2292.8,2292.6,3.90498]
[1725705300058,3.74325987,2292.7,2292.6,3.90498]
[1725705301579,6.74325987,2292.7,2292.6,3.90498]
[1725705302072,3.0,2292.7,2292.6,3.90498]
[1725705302275,3.0,2292.8,2292.7,4.36161]
[1725705302639,3.0,2292.8,2292.7,4.46673474]
[1725705303533,3.0,2292.8,2292.7,0.10512474]
[1725705304176,3.0,2292.8,2292.7,4.46678474]
[1725705305970,3.0,2292.8,2292.7,0.10512474]
[1725705306168,9.81757,2292.8,2292.7,0.10512474]
[1725705306346,5.4561,2292.8,2292.4,8.72425]
[1725705306546,3.74325987,2292.6,2292.4,8.72425]
[1725705306756,3.74325987,2292.6,2292.5,0.10512474]
[1725705306942,6.74325987,2292.6,2292.5,0.10512474]
[1725705307651,3.0,2292.6,2292.5,9.27594821]
[1725705307853,3.0,2292.9,2292.7,4.3615]
[1725705308366,3.0,2292.9,2292.8,0.10555735]
[1725705308675,3.0,2292.9,2292.7,4.3615]
[1725705308884,3.0,2292.9,2292.8,0.10555735]
[1725705309177,3.0,2292.9,2292.7,4.3615]
[1725705309386,3.0,2292.9,2292.8,0.10555735]
[1725705309752,3.0,2292.9,2292.7,4.3615]
[1725705309959,3.0,2292.9,2292.8,0.10555735]
[1725705310374,3.0,2292.9,2292.7,4.3615]
[1725705310678,3.0,2292.9,2292.8,0.10555735]
[1725705311083,3.45681736,2292.9,2292.7,4.3615]
[1725705311285,3.45681736,2292.9,2292.8,0.10555735]
[1725705311786,3.45681736,2292.9,2292.7,8.72306]